Workbook

Sheet calc
B2: TAB: READ SVG FILES DATA
B4: Parser | D4: Folder path | E4: C:\Users\konstantin.rybakov\Documents\_Never Backup\projects\java\jmc\jedt\xml\data\cds\test | L4: recalculate | M4: 0 | P4: Scale Parameters Matching
B6: Calculator parameters | D6: Initial range parameters | I6: Adjusted range parameters
B8: # | C8: File name | D8: y: Lower bound | E8: y: Upper bound | F8: Δy | G8: svg: y-floor | H8: svg: height | I8: =D8 -> y: Lower bound | J8: =E8 -> y: Upper bound | K8: =F8 -> Δy | L8: Slope | M8: Intercept | O8: # | P8: File Name | Q8: Stats | R8: svg coords | S8: stats coords | T8: integer coords
B9: 1 | C9: Daimler AG CDS.svg | D9: -0.42 | E9: 59.6 | F9: =E9-D9 -> 60.02 | G9: =_xll.AC.edit.svg.get($D$16, C9, config!$B$13) -> 0 | H9: =_xll.AC.edit.svg.get($D$16, C9, config!$B$12) -> 616 | I9: =M9 -> -0.8436229619 | J9: =K9+I9 -> 59.59939481 | K9: =H9*L9 -> 60.44301777 | L9: =SLOPE(OFFSET($R$9:$R$10, 2*(B9-1), 0), OFFSET($T$9:$T$10, 2*(B9-1), 0)) -> 0.0981217821 | M9: =INTERCEPT(OFFSET($R$9:$R$10, 2*(B9-1), 0), OFFSET($T$9:$T$10, 2*(B9-1), 0)) -> -0.8436229619 | O9: 1 | P9: =C9 -> Daimler AG CDS.svg | Q9: last-1 | R9: 47.42 | S9: =out!E269 -> 47.50584416 | T9: =(S9-OFFSET($D$9, O9-1, 0))*OFFSET($H$9, O9-1, 0)/OFFSET($F$9, O9-1, 0) -> 491.8747084
B10: =B9+1 -> 2 | C10: UV800538 Corp.svg | D10: 2.84 | E10: 6.08 | F10: =E10-D10 -> 3.24 | G10: =_xll.AC.edit.svg.get($D$16, C10, config!$B$13) -> 0 | H10: =_xll.AC.edit.svg.get($D$16, C10, config!$B$12) -> 718 | I10: =M10 -> -1.4897445 | J10: =K10+I10 -> -1.055138255 | K10: =H10*L10 -> 0.4346062445 | L10: =SLOPE(OFFSET($R$9:$R$10, 2*(B10-1), 0), OFFSET($T$9:$T$10, 2*(B10-1), 0)) -> 0.0006053011762 | M10: =INTERCEPT(OFFSET($R$9:$R$10, 2*(B10-1), 0), OFFSET($T$9:$T$10, 2*(B10-1), 0)) -> -1.4897445 | Q10: last-2 | R10: 13.61 | S10: =out!F269 -> 13.93246753 | T10: =(S10-OFFSET($D$9, O9-1, 0))*OFFSET($H$9, O9-1, 0)/OFFSET($F$9, O9-1, 0) -> 147.302899
O11: =O9+1 -> 2 | P11: =C10 -> UV800538 Corp.svg | Q11: min | R11: 3.087 | S11: =MIN(out!E9:E500) -> 36.95974026 | T11: =(S11-OFFSET($D$9, O11-1, 0))*OFFSET($H$9, O11-1, 0)/OFFSET($F$9, O11-1, 0) -> 7561.102934
Q12: max | R12: 5.475 | S12: =MAX(out!E9:E500) -> 54.76233766 | T12: =(S12-OFFSET($D$9, O11-1, 0))*OFFSET($H$9, O11-1, 0)/OFFSET($F$9, O11-1, 0) -> 11506.24643
C16: Calculator | D16: =_xll.AC.edit.svg.load(E4, C9:E10, M4) -> java.util.LinkedHashMap@Thu, 3 Jan 2019 15:42:11:966..3361289015898953858

Sheet out
B2: TAB: SVG OUTPUT DATA
D4: key | E4: object | G4: dim
B5: =calc!C9 -> Daimler AG CDS.svg | D5: =config!B11 -> xgrid | E5: =_xll.AC.edit.svg.get(calc!$D$16, $B$5, D5) -> java.util.ArrayList@Thu, 3 Jan 2019 15:08:08:386..3936097392219092238 | G5: =_xll.AC.data.size(E5, 1) -> 261
D6: =config!B10 -> polylines | E6: =_xll.AC.edit.svg.get(calc!$D$16, $B$5, D6) -> java.util.ArrayList@Thu, 3 Jan 2019 15:10:42:677..3026392883515612316 | G6: =_xll.AC.data.size(E6, 1) -> 5 | H6: =_xll.AC.data.size(E6, 2) -> 261
B8: Date | C8: Week Day | D8: x-values | E8: x1 | F8: x2 | G8: x3 | H8: x4 | I8: x5 | J8: x6 | K8: x7 | L8: x8 | M8: x9 | N8: x10 | O8: x11
B9: 2017-01-01 | C9: =WEEKDAY(B9) -> 1 | D9: =_xll.AC.data._get(E5, "", 0) -> 0 | E9: =_xll.AC.data._get(E6, "", 1) -> 40.53961039 | F9: 26.41363636 | G9: 5.418181818 | H9: 12.48116883 | I9: 8.224025974
B10: =IF(C9=6, B9+3, B9+1) -> 2017-01-02 | C10: =WEEKDAY(B10) -> 2 | D10: 4 | E10: 40.53961039 | F10: 26.41363636 | G10: 5.418181818 | H10: 11.90064935 | I10: 7.546753247
B11: =IF(C10=6, B10+3, B10+1) -> 2017-01-03 | C11: =WEEKDAY(B11) -> 3 | D11: 8 | E11: 39.76558442 | F11: 27.28441558 | G11: 5.418181818 | H11: 11.8038961 | I11: 7.546753247
B12: 2017-01-04 | C12: 4 | D12: 11 | E12: 39.66883117 | F12: 27.09090909 | G12: 6.288961039 | H12: 11.8038961 | I12: 6.288961039
B13: 2017-01-05 | C13: 5 | D13: 15 | E13: 39.66883117 | F13: 27.47792208 | G13: 6.288961039 | H13: 11.61038961 | I13: 6.288961039
B14: 2017-01-06 | C14: 6 | D14: 19 | E14: 39.66883117 | F14: 27.67142857 | G14: 7.353246753 | H14: 12.86818182 | I14: 7.353246753
B15: 2017-01-09 | C15: 2 | D15: 23 | E15: 40.63636364 | F15: 34.63766234 | G15: 7.45 | H15: 10.25584416 | I15: 7.45
B16: 2017-01-10 | C16: 3 | D16: 27 | E16: 41.02337662 | F16: 34.92792208 | G16: 7.45 | H16: 24.18831169 | I16: 7.45
B17: 2017-01-11 | C17: 4 | D17: 30 | E17: 42.57142857 | F17: 31.15454545 | G17: 7.837012987 | H17: 10.25584416 | I17: 7.643506494
B18: 2017-01-12 | C18: 5 | D18: 34 | E18: 43.82922078 | F18: 31.73506494 | G18: 7.74025974 | H18: 10.25584416 | I18: 7.74025974
B19: 2017-01-13 | C19: 6 | D19: 38 | E19: 44.21623377 | F19: 31.44480519 | G19: 7.546753247 | H19: 9.965584416 | I19: 7.546753247
B20: 2017-01-16 | C20: 2 | D20: 42 | E20: 43.63571429 | F20: 31.73506494 | G20: 7.45 | H20: 9.868831169 | I20: 7.353246753
B21: 2017-01-17 | C21: 3 | D21: 46 | E21: 43.2487013 | F21: 31.73506494 | G21: 7.45 | H21: 9.868831169 | I21: 7.45
B22: 2017-01-18 | C22: 4 | D22: 50 | E22: 43.2487013 | F22: 31.73506494 | G22: 7.643506494 | H22: 10.25584416 | I22: 7.546753247
B23: 2017-01-19 | C23: 5 | D23: 53 | E23: 43.2487013 | F23: 32.8961039 | G23: 8.320779221 | H23: 10.25584416 | I23: 8.320779221
B24: 2017-01-20 | C24: 6 | D24: 57 | E24: 43.44220779 | F24: 32.41233766 | G24: 6.772727273 | H24: 10.25584416 | I24: 6.288961039
B25: 2017-01-23 | C25: 2 | D25: 61 | E25: 44.50649351 | F25: 33.08961039 | G25: 9.965584416 | H25: 10.25584416 | I25: 9.965584416
B26: 2017-01-24 | C26: 3 | D26: 65 | E26: 47.02207792 | F26: 34.25064935 | G26: 11.51363636 | H26: 11.32012987 | I26: 11.51363636
B27: 2017-01-25 | C27: 4 | D27: 69 | E27: 48.37662338 | F27: 34.44415584 | G27: 12.48116883 | H27: 11.32012987 | I27: 12.67467532
B28: 2017-01-26 | C28: 5 | D28: 72 | E28: 47.7961039 | F28: 34.63766234 | G28: 11.22337662 | H28: 10.83636364 | I28: 11.41688312
B29: 2017-01-27 | C29: 6 | D29: 76 | E29: 47.89285714 | F29: 35.21818182 | G29: 11.32012987 | H29: 10.64285714 | I29: 11.51363636
B30: 2017-01-30 | C30: 2 | D30: 80 | E30: 47.69935065 | F30: 36.18571429 | G30: 11.51363636 | H30: 10.83636364 | I30: 11.70714286
B31: 2017-01-31 | C31: 3 | D31: 84 | E31: 47.89285714 | F31: 38.50779221 | G31: 11.90064935 | H31: 10.83636364 | I31: 12.19090909
B32: 2017-02-01 | C32: 4 | D32: 88 | E32: 54.66558442 | F32: 39.08831169 | G32: 12.48116883 | H32: 11.22337662 | I32: 12.48116883
B33: 2017-02-02 | C33: 5 | D33: 91 | E33: 54.76233766 | F33: 38.89480519 | G33: 12.09415584 | H33: 11.12662338 | I33: 12.19090909
B34: 2017-02-03 | C34: 6 | D34: 95 | E34: 54.37532468 | F34: 39.37857143 | G34: 12.09415584 | H34: 11.12662338 | I34: 14.31948052
B35: 2017-02-06 | C35: 2 | D35: 99 | E35: 54.08506494 | F35: 39.18506494 | G35: 13.93246753 | H35: 10.93311688 | I35: 12.28766234
B36: 2017-02-07 | C36: 3 | D36: 103 | E36: 53.6012987 | F36: 37.92727273 | G36: 13.73896104 | H36: 10.73961039 | I36: 11.32012987
B37: 2017-02-08 | C37: 4 | D37: 107 | E37: 52.73051948 | F37: 37.25 | G37: 11.32012987 | H37: 10.73961039 | I37: 8.320779221
B38: 2017-02-09 | C38: 5 | D38: 111 | E38: 51.37597403 | F38: 37.05649351 | G38: 11.32012987 | H38: 10.25584416 | I38: 10.06233766
B39: 2017-02-10 | C39: 6 | D39: 114 | E39: 51.08571429 | F39: 35.7987013 | G39: 11.51363636 | H39: 10.06233766 | I39: 10.15909091
B40: 2017-02-13 | C40: 2 | D40: 118 | E40: 50.98896104 | F40: 35.31493506 | G40: 11.70714286 | H40: 10.3525974 | I40: 10.25584416
B41: 2017-02-14 | C41: 3 | D41: 122 | E41: 51.08571429 | F41: 34.54090909 | G41: 11.32012987 | H41: 10.15909091 | I41: 10.06233766
B42: 2017-02-15 | C42: 4 | D42: 126 | E42: 50.6987013 | F42: 34.54090909 | G42: 11.22337662 | H42: 10.06233766 | I42: 10.06233766
B43: 2017-02-16 | C43: 5 | D43: 130 | E43: 50.40844156 | F43: 26.60714286 | G43: 11.51363636 | H43: 10.15909091 | I43: 10.15909091
B44: 2017-02-17 | C44: 6 | D44: 133 | E44: 51.08571429 | F44: 26.60714286 | G44: 11.51363636 | H44: 10.15909091 | I44: 10.25584416
B45: 2017-02-20 | C45: 2 | D45: 137 | E45: 52.15 | F45: 26.60714286 | G45: 11.8038961 | H45: 10.25584416 | I45: 10.5461039
B46: 2017-02-21 | C46: 3 | D46: 141 | E46: 52.63376623 | F46: 27.09090909 | G46: 11.61038961 | H46: 10.64285714 | I46: 10.25584416
B47: 2017-02-22 | C47: 4 | D47: 145 | E47: 52.53701299 | F47: 27.28441558 | G47: 11.70714286 | H47: 10.44935065 | I47: 10.15909091
B48: 2017-02-23 | C48: 5 | D48: 149 | E48: 52.92402597 | F48: 27.76818182 | G48: 10.25584416 | H48: 10.5461039 | I48: 10.25584416
B49: 2017-02-24 | C49: 6 | D49: 152 | E49: 52.05324675 | F49: 26.8974026 | G49: 10.3525974 | H49: 10.44935065 | I49: 10.3525974
B50: 2017-02-27 | C50: 2 | D50: 156 | E50: 51.56948052 | F50: 26.7038961 | G50: 10.3525974 | H50: 10.44935065 | I50: 10.44935065
B51: 2017-02-28 | C51: 3 | D51: 160 | E51: 50.79545455 | F51: 26.02662338 | G51: 9.965584416 | H51: 10.25584416 | I51: 9.385064935
B52: 2017-03-01 | C52: 4 | D52: 164 | E52: 50.79545455 | F52: 26.02662338 | G52: 10.3525974 | H52: 10.44935065 | I52: 9.675324675
B53: 2017-03-02 | C53: 5 | D53: 168 | E53: 50.31168831 | F53: 21.57597403 | G53: 10.15909091 | H53: 10.25584416 | I53: 9.385064935
B54: 2017-03-03 | C54: 6 | D54: 172 | E54: 50.98896104 | F54: 20.31818182 | G54: 9.868831169 | H54: 10.06233766 | I54: 9.288311688
B55: 2017-03-06 | C55: 2 | D55: 175 | E55: 50.02142857 | F55: 20.22142857 | G55: 10.06233766 | H55: 9.965584416 | I55: 9.288311688
B56: 2017-03-07 | C56: 3 | D56: 179 | E56: 49.2474026 | F56: 20.22142857 | G56: 9.868831169 | H56: 10.06233766 | I56: 9.191558442
B57: 2017-03-08 | C57: 4 | D57: 183 | E57: 49.44090909 | F57: 20.8987013 | G57: 10.06233766 | H57: 9.965584416 | I57: 9.288311688
B58: 2017-03-09 | C58: 5 | D58: 187 | E58: 50.11818182 | F58: 17.22207792 | G58: 10.25584416 | H58: 9.965584416 | I58: 10.25584416
B59: 2017-03-10 | C59: 6 | D59: 191 | E59: 50.40844156 | F59: 17.41558442 | G59: 10.64285714 | H59: 10.15909091 | I59: 10.5461039
B60: 2017-03-13 | C60: 2 | D60: 194 | E60: 50.6987013 | F60: 17.22207792 | G60: 10.83636364 | H60: 10.3525974 | I60: 10.73961039
B61: 2017-03-14 | C61: 3 | D61: 198 | E61: 51.27922078 | F61: 17.8025974 | G61: 11.32012987 | H61: 10.5461039 | I61: 11.32012987
B62: 2017-03-15 | C62: 4 | D62: 202 | E62: 50.6987013 | F62: 17.22207792 | G62: 10.73961039 | H62: 10.3525974 | I62: 10.64285714
B63: 2017-03-16 | C63: 5 | D63: 206 | E63: 50.40844156 | F63: 16.64155844 | G63: 10.3525974 | H63: 10.06233766 | I63: 10.3525974
B64: 2017-03-17 | C64: 6 | D64: 210 | E64: 50.02142857 | F64: 16.44805195 | G64: 10.25584416 | H64: 9.772077922 | I64: 10.15909091
B65: 2017-03-20 | C65: 2 | D65: 213 | E65: 51.18246753 | F65: 16.93181818 | G65: 10.5461039 | H65: 10.15909091 | I65: 10.64285714
B66: 2017-03-21 | C66: 3 | D66: 217 | E66: 50.89220779 | F66: 17.22207792 | G66: 10.44935065 | H66: 9.868831169 | I66: 10.5461039
B67: 2017-03-22 | C67: 4 | D67: 221 | E67: 51.27922078 | F67: 17.41558442 | G67: 10.44935065 | H67: 10.44935065 | I67: 10.64285714
B68: 2017-03-23 | C68: 5 | D68: 225 | E68: 51.37597403 | F68: 17.60909091 | G68: 10.3525974 | H68: 9.772077922 | I68: 10.44935065
B69: 2017-03-24 | C69: 6 | D69: 229 | E69: 51.27922078 | F69: 16.83506494 | G69: 10.3525974 | H69: 9.675324675 | I69: 10.3525974
B70: 2017-03-27 | C70: 2 | D70: 233 | E70: 50.60194805 | F70: 17.02857143 | G70: 10.15909091 | H70: 9.772077922 | I70: 10.3525974
B71: 2017-03-28 | C71: 3 | D71: 236 | E71: 50.21493506 | F71: 16.83506494 | G71: 10.06233766 | H71: 9.578571429 | I71: 10.44935065
B72: 2017-03-29 | C72: 4 | D72: 240 | E72: 49.44090909 | F72: 16.83506494 | G72: 9.675324675 | H72: 9.578571429 | I72: 9.868831169
B73: 2017-03-30 | C73: 5 | D73: 244 | E73: 48.95714286 | F73: 16.73831169 | G73: 9.772077922 | H73: 9.675324675 | I73: 10.06233766
B74: 2017-03-31 | C74: 6 | D74: 248 | E74: 47.50584416 | F74: 16.93181818 | G74: 9.578571429 | H74: 9.481818182 | I74: 9.868831169
B75: =IF(C74=6, B74+3, B74+1) -> 2017-04-03 | C75: =WEEKDAY(B75) -> 2 | D75: 252 | E75: 46.34480519 | F75: 16.83506494 | G75: 9.385064935 | H75: 9.385064935 | I75: 9.578571429
B76: 2017-04-04 | C76: 3 | D76: 255 | E76: 46.92532468 | F76: 16.64155844 | G76: 9.385064935 | H76: 9.288311688 | I76: 9.481818182
B77: 2017-04-05 | C77: 4 | D77: 259 | E77: 47.02207792 | F77: 17.12532468 | G77: 9.578571429 | H77: 9.191558442 | I77: 9.675324675
B78: 2017-04-06 | C78: 5 | D78: 263 | E78: 46.92532468 | F78: 16.73831169 | G78: 9.772077922 | H78: 9.191558442 | I78: 10.06233766
B79: 2017-04-07 | C79: 6 | D79: 267 | E79: 46.24805195 | F79: 16.54480519 | G79: 9.578571429 | H79: 9.578571429 | I79: 9.965584416
B80: 2017-04-10 | C80: 2 | D80: 271 | E80: 46.63506494 | F80: 16.83506494 | G80: 9.675324675 | H80: 9.191558442 | I80: 9.868831169
B81: 2017-04-11 | C81: 3 | D81: 274 | E81: 47.40909091 | F81: 17.02857143 | G81: 9.772077922 | H81: 9.481818182 | I81: 9.868831169
B82: 2017-04-12 | C82: 4 | D82: 278 | E82: 47.7961039 | F82: 16.93181818 | G82: 9.772077922 | H82: 9.385064935 | I82: 9.965584416
B83: 2017-04-13 | C83: 5 | D83: 282 | E83: 47.21558442 | F83: 16.93181818 | G83: 9.288311688 | H83: 9.578571429 | I83: 8.514285714
B84: 2017-04-14 | C84: 6 | D84: 286 | E84: 47.21558442 | F84: 16.83506494 | G84: 9.288311688 | H84: 9.578571429 | I84: 8.320779221
B85: 2017-04-17 | C85: 2 | D85: 290 | E85: 47.11883117 | F85: 17.02857143 | G85: 9.288311688 | H85: 9.288311688 | I85: 7.933766234
B86: 2017-04-18 | C86: 3 | D86: 293 | E86: 47.11883117 | F86: 17.02857143 | G86: 9.288311688 | H86: 9.191558442 | I86: 8.030519481
B87: 2017-04-19 | C87: 4 | D87: 297 | E87: 47.21558442 | F87: 17.02857143 | G87: 9.385064935 | H87: 9.191558442 | I87: 8.030519481
B88: 2017-04-20 | C88: 5 | D88: 301 | E88: 46.92532468 | F88: 17.02857143 | G88: 8.998051948 | H88: 8.320779221 | I88: 7.546753247
B89: 2017-04-21 | C89: 6 | D89: 305 | E89: 46.05454545 | F89: 16.64155844 | G89: 8.901298701 | H89: 8.514285714 | I89: 7.74025974
B90: 2017-04-24 | C90: 2 | D90: 309 | E90: 46.1512987 | F90: 16.73831169 | G90: 8.998051948 | H90: 8.707792208 | I90: 7.74025974
B91: 2017-04-25 | C91: 3 | D91: 313 | E91: 46.92532468 | F91: 16.83506494 | G91: 9.481818182 | H91: 10.06233766 | I91: 7.837012987
B92: 2017-04-26 | C92: 4 | D92: 316 | E92: 47.50584416 | F92: 16.44805195 | G92: 9.481818182 | H92: 11.02987013 | I92: 8.417532468
B93: 2017-04-27 | C93: 5 | D93: 320 | E93: 46.82857143 | F93: 16.44805195 | G93: 9.094805195 | H93: 10.83636364 | I93: 7.74025974
B94: 2017-04-28 | C94: 6 | D94: 324 | E94: 46.82857143 | F94: 16.25454545 | G94: 9.288311688 | H94: 10.5461039 | I94: 8.320779221
B95: 2017-05-01 | C95: 2 | D95: 328 | E95: 45.76428571 | F95: 16.06103896 | G95: 9.288311688 | H95: 9.965584416 | I95: 8.320779221
B96: 2017-05-02 | C96: 3 | D96: 332 | E96: 46.63506494 | F96: 15.86753247 | G96: 10.25584416 | H96: 9.965584416 | I96: 8.417532468
B97: 2017-05-03 | C97: 4 | D97: 335 | E97: 45.86103896 | F97: 22.54350649 | G97: 10.25584416 | H97: 9.868831169 | I97: 8.514285714
B98: 2017-05-04 | C98: 5 | D98: 339 | E98: 46.63506494 | F98: 22.83376623 | G98: 10.25584416 | H98: 10.25584416 | I98: 8.514285714
B99: 2017-05-05 | C99: 6 | D99: 343 | E99: 46.34480519 | F99: 22.35 | G99: 10.25584416 | H99: 8.998051948 | I99: 8.417532468
B100: 2017-05-08 | C100: 2 | D100: 347 | E100: 46.1512987 | F100: 22.64025974 | G100: 10.06233766 | H100: 9.094805195 | I100: 8.224025974
B101: 2017-05-09 | C101: 3 | D101: 351 | E101: 46.1512987 | F101: 22.44675325 | G101: 10.15909091 | H101: 9.094805195 | I101: 8.514285714
B102: 2017-05-10 | C102: 4 | D102: 354 | E102: 45.47402597 | F102: 17.9961039 | G102: 7.15974026 | H102: 7.353246753 | I102: 7.837012987
B103: 2017-05-11 | C103: 5 | D103: 358 | E103: 44.79675325 | F103: 18.47987013 | G103: 7.15974026 | H103: 7.353246753 | I103: 7.256493506
B104: 2017-05-12 | C104: 6 | D104: 362 | E104: 44.7 | F104: 18.18961039 | G104: 7.837012987 | H104: 7.74025974 | I104: 8.514285714
B105: 2017-05-15 | C105: 2 | D105: 366 | E105: 44.40974026 | F105: 18.67337662 | G105: 10.44935065 | H105: 8.611038961 | I105: 8.901298701
B106: 2017-05-16 | C106: 3 | D106: 370 | E106: 45.28051948 | F106: 18.38311688 | G106: 8.707792208 | H106: 8.901298701 | I106: 8.417532468
B107: 2017-05-17 | C107: 4 | D107: 374 | E107: 46.24805195 | F107: 18.28636364 | G107: 8.707792208 | H107: 8.320779221 | I107: 8.998051948
B108: 2017-05-18 | C108: 5 | D108: 377 | E108: 46.73181818 | F108: 18.57662338 | G108: 8.804545455 | H108: 8.320779221 | I108: 9.191558442
B109: 2017-05-19 | C109: 6 | D109: 381 | E109: 46.1512987 | F109: 18.57662338 | G109: 9.385064935 | H109: 9.191558442 | I109: 9.288311688
B110: 2017-05-22 | C110: 2 | D110: 385 | E110: 46.1512987 | F110: 22.44675325 | G110: 8.707792208 | H110: 9.385064935 | I110: 8.417532468
B111: 2017-05-23 | C111: 3 | D111: 389 | E111: 46.34480519 | F111: 22.64025974 | G111: 8.804545455 | H111: 8.707792208 | I111: 8.417532468
B112: 2017-05-24 | C112: 4 | D112: 393 | E112: 45.95779221 | F112: 22.64025974 | G112: 8.901298701 | H112: 8.611038961 | I112: 8.417532468
B113: 2017-05-25 | C113: 5 | D113: 396 | E113: 45.37727273 | F113: 22.64025974 | G113: 8.804545455 | H113: 8.320779221 | I113: 7.837012987
B114: 2017-05-26 | C114: 6 | D114: 400 | E114: 45.95779221 | F114: 18.18961039 | G114: 8.611038961 | H114: 8.611038961 | I114: 6.772727273
B115: 2017-05-29 | C115: 2 | D115: 404 | E115: 45.08701299 | F115: 17.89935065 | G115: 9.288311688 | H115: 8.320779221 | I115: 8.320779221
B116: 2017-05-30 | C116: 3 | D116: 408 | E116: 44.7 | F116: 18.18961039 | G116: 8.998051948 | H116: 8.707792208 | I116: 8.127272727
B117: 2017-05-31 | C117: 4 | D117: 412 | E117: 44.11948052 | F117: 17.89935065 | G117: 9.094805195 | H117: 8.804545455 | I117: 7.74025974
B118: 2017-06-01 | C118: 5 | D118: 415 | E118: 43.82922078 | F118: 17.9961039 | G118: 8.998051948 | H118: 8.804545455 | I118: 7.45
B119: 2017-06-02 | C119: 6 | D119: 419 | E119: 42.95844156 | F119: 17.70584416 | G119: 8.611038961 | H119: 8.707792208 | I119: 7.256493506
B120: 2017-06-05 | C120: 2 | D120: 423 | E120: 42.18441558 | F120: 17.8025974 | G120: 8.320779221 | H120: 8.514285714 | I120: 5.321428571
B121: 2017-06-06 | C121: 3 | D121: 427 | E121: 40.92662338 | F121: 16.83506494 | G121: 8.127272727 | H121: 8.030519481 | I121: 5.031168831
B122: 2017-06-07 | C122: 4 | D122: 431 | E122: 39.95909091 | F122: 16.73831169 | G122: 4.934415584 | H122: 8.127272727 | I122: 5.031168831
B123: 2017-06-08 | C123: 5 | D123: 435 | E123: 39.47532468 | F123: 16.25454545 | G123: 8.320779221 | H123: 8.127272727 | I123: 7.353246753
B124: 2017-06-09 | C124: 6 | D124: 438 | E124: 38.99155844 | F124: 16.15779221 | G124: 8.514285714 | H124: 7.15974026 | I124: 7.353246753
B125: 2017-06-12 | C125: 2 | D125: 442 | E125: 39.95909091 | F125: 15.48051948 | G125: 8.320779221 | H125: 7.74025974 | I125: 7.353246753
B126: 2017-06-13 | C126: 3 | D126: 446 | E126: 40.63636364 | F126: 15.48051948 | G126: 8.320779221 | H126: 7.353246753 | I126: 8.320779221
B127: 2017-06-14 | C127: 4 | D127: 450 | E127: 41.50714286 | F127: 16.3512987 | G127: 8.804545455 | H127: 9.094805195 | I127: 7.353246753
B128: 2017-06-15 | C128: 5 | D128: 454 | E128: 41.41038961 | F128: 15.67402597 | G128: 8.320779221 | H128: 7.353246753 | I128: 7.353246753
B129: 2017-06-16 | C129: 6 | D129: 457 | E129: 41.6038961 | F129: 15.57727273 | G129: 8.707792208 | H129: 8.224025974 | I129: 7.353246753
B130: 2017-06-19 | C130: 2 | D130: 461 | E130: 40.82987013 | F130: 15.28701299 | G130: 8.320779221 | H130: 7.353246753 | I130: 6.869480519
B131: 2017-06-20 | C131: 3 | D131: 465 | E131: 42.37792208 | F131: 15.77077922 | G131: 8.417532468 | H131: 7.45 | I131: 7.256493506
B132: 2017-06-21 | C132: 4 | D132: 469 | E132: 41.7974026 | F132: 15.48051948 | G132: 8.514285714 | H132: 7.933766234 | I132: 7.546753247
B133: 2017-06-22 | C133: 5 | D133: 473 | E133: 41.12012987 | F133: 15.86753247 | G133: 8.514285714 | H133: 8.030519481 | I133: 7.353246753
B134: 2017-06-23 | C134: 6 | D134: 476 | E134: 41.21688312 | F134: 15.77077922 | G134: 8.320779221 | H134: 8.320779221 | I134: 7.353246753
B135: 2017-06-26 | C135: 2 | D135: 480 | E135: 41.7974026 | F135: 15.57727273 | G135: 9.288311688 | H135: 10.25584416 | I135: 7.837012987
B136: 2017-06-27 | C136: 3 | D136: 484 | E136: 42.08766234 | F136: 15.96428571 | G136: 8.320779221 | H136: 10.44935065 | I136: 7.353246753
B137: 2017-06-28 | C137: 4 | D137: 488 | E137: 43.63571429 | F137: 15.67402597 | G137: 8.320779221 | H137: 8.320779221 | I137: 7.353246753
B138: 2017-06-29 | C138: 5 | D138: 492 | E138: 43.73246753 | F138: 15.38376623 | G138: 8.320779221 | H138: 9.094805195 | I138: 7.353246753
B139: =IF(C138=6, B138+3, B138+1) -> 2017-06-30 | C139: =WEEKDAY(B139) -> 6 | D139: 496 | E139: 44.02272727 | F139: 15.28701299 | G139: 7.933766234 | H139: 8.320779221 | I139: 7.353246753
B140: 2017-07-03 | C140: 2 | D140: 499 | E140: 44.11948052 | F140: 15.38376623 | G140: 8.127272727 | H140: 8.611038961 | I140: 7.256493506
B141: 2017-07-04 | C141: 3 | D141: 503 | E141: 43.73246753 | F141: 15.09350649 | G141: 8.320779221 | H141: 7.353246753 | I141: 6.869480519
B142: 2017-07-05 | C142: 4 | D142: 507 | E142: 43.53896104 | F142: 15.19025974 | G142: 8.514285714 | H142: 7.45 | I142: 7.062987013
B143: 2017-07-06 | C143: 5 | D143: 511 | E143: 44.11948052 | F143: 15.28701299 | G143: 8.707792208 | H143: 7.643506494 | I143: 7.353246753
B144: 2017-07-07 | C144: 6 | D144: 515 | E144: 43.82922078 | F144: 15.38376623 | G144: 8.707792208 | H144: 7.74025974 | I144: 7.546753247
B145: 2017-07-10 | C145: 2 | D145: 518 | E145: 44.40974026 | F145: 15.48051948 | G145: 9.288311688 | H145: 7.933766234 | I145: 7.933766234
B146: 2017-07-11 | C146: 3 | D146: 522 | E146: 44.7 | F146: 15.48051948 | G146: 9.094805195 | H146: 7.837012987 | I146: 7.837012987
B147: 2017-07-12 | C147: 4 | D147: 526 | E147: 44.79675325 | F147: 15.38376623 | G147: 8.224025974 | H147: 7.643506494 | I147: 8.611038961
B148: 2017-07-13 | C148: 5 | D148: 530 | E148: 45.08701299 | F148: 15.67402597 | G148: 8.224025974 | H148: 7.74025974 | I148: 8.127272727
B149: 2017-07-14 | C149: 6 | D149: 534 | E149: 45.66753247 | F149: 15.57727273 | G149: 8.127272727 | H149: 7.74025974 | I149: 8.030519481
B150: 2017-07-17 | C150: 2 | D150: 537 | E150: 45.47402597 | F150: 15.67402597 | G150: 8.320779221 | H150: 13.54545455 | I150: 7.837012987
B151: 2017-07-18 | C151: 3 | D151: 541 | E151: 45.95779221 | F151: 15.86753247 | G151: 8.514285714 | H151: 13.73896104 | I151: 7.837012987
B152: 2017-07-19 | C152: 4 | D152: 545 | E152: 46.1512987 | F152: 16.15779221 | G152: 8.417532468 | H152: 13.73896104 | I152: 7.837012987
B153: 2017-07-20 | C153: 5 | D153: 549 | E153: 45.86103896 | F153: 16.3512987 | G153: 9.481818182 | H153: 11.90064935 | I153: 8.127272727
B154: 2017-07-21 | C154: 6 | D154: 553 | E154: 45.08701299 | F154: 16.3512987 | G154: 9.288311688 | H154: 11.8038961 | I154: 7.643506494
B155: 2017-07-24 | C155: 2 | D155: 556 | E155: 44.7 | F155: 16.25454545 | G155: 8.804545455 | H155: 8.320779221 | I155: 7.353246753
B156: 2017-07-25 | C156: 3 | D156: 560 | E156: 44.60324675 | F156: 16.25454545 | G156: 8.611038961 | H156: 8.224025974 | I156: 7.546753247
B157: 2017-07-26 | C157: 4 | D157: 564 | E157: 44.79675325 | F157: 13.15844156 | G157: 9.288311688 | H157: 8.320779221 | I157: 7.353246753
B158: 2017-07-27 | C158: 5 | D158: 568 | E158: 44.40974026 | F158: 12.96493506 | G158: 9.288311688 | H158: 8.224025974 | I158: 7.45
B159: 2017-07-28 | C159: 6 | D159: 572 | E159: 44.40974026 | F159: 12.67467532 | G159: 8.804545455 | H159: 8.224025974 | I159: 7.546753247
B160: 2017-07-31 | C160: 2 | D160: 576 | E160: 45.28051948 | F160: 12.96493506 | G160: 9.288311688 | H160: 8.611038961 | I160: 7.933766234
B161: 2017-08-01 | C161: 3 | D161: 579 | E161: 47.40909091 | F161: 13.35194805 | G161: 9.481818182 | H161: 8.707792208 | I161: 8.127272727
B162: 2017-08-02 | C162: 4 | D162: 583 | E162: 48.08636364 | F162: 13.06168831 | G162: 9.385064935 | H162: 8.611038961 | I162: 8.127272727
B163: 2017-08-03 | C163: 5 | D163: 587 | E163: 47.02207792 | F163: 13.06168831 | G163: 9.385064935 | H163: 8.514285714 | I163: 8.224025974
B164: 2017-08-04 | C164: 6 | D164: 591 | E164: 48.27987013 | F164: 13.35194805 | G164: 9.385064935 | H164: 8.804545455 | I164: 8.417532468
B165: 2017-08-07 | C165: 2 | D165: 595 | E165: 48.95714286 | F165: 13.64220779 | G165: 9.965584416 | H165: 9.094805195 | I165: 8.707792208
B166: 2017-08-08 | C166: 3 | D166: 598 | E166: 49.2474026 | F166: 13.93246753 | G166: 10.06233766 | H166: 9.094805195 | I166: 8.901298701
B167: 2017-08-09 | C167: 4 | D167: 602 | E167: 49.34415584 | F167: 25.05909091 | G167: 9.675324675 | H167: 8.901298701 | I167: 8.514285714
B168: 2017-08-10 | C168: 5 | D168: 606 | E168: 48.37662338 | F168: 26.51038961 | G168: 9.288311688 | H168: 8.707792208 | I168: 8.514285714
B169: 2017-08-11 | C169: 6 | D169: 610 | E169: 47.98961039 | F169: 19.4474026 | G169: 9.288311688 | H169: 8.901298701 | I169: 8.320779221
B170: 2017-08-14 | C170: 2 | D170: 614 | E170: 47.21558442 | F170: 19.64090909 | G170: 8.901298701 | H170: 8.611038961 | I170: 7.74025974
B171: 2017-08-15 | C171: 3 | D171: 617 | E171: 46.1512987 | F171: 19.15714286 | G171: 9.094805195 | H171: 8.611038961 | I171: 7.837012987
B172: 2017-08-16 | C172: 4 | D172: 621 | E172: 45.18376623 | F172: 19.73766234 | G172: 8.320779221 | H172: 9.288311688 | I172: 7.353246753
B173: 2017-08-17 | C173: 5 | D173: 625 | E173: 44.79675325 | F173: 18.96363636 | G173: 8.320779221 | H173: 8.320779221 | I173: 6.772727273
B174: 2017-08-18 | C174: 6 | D174: 629 | E174: 44.50649351 | F174: 18.38311688 | G174: 8.320779221 | H174: 8.514285714 | I174: 7.353246753
B175: 2017-08-21 | C175: 2 | D175: 633 | E175: 44.21623377 | F175: 18.86688312 | G175: 8.320779221 | H175: 8.804545455 | I175: 7.353246753
B176: 2017-08-22 | C176: 3 | D176: 637 | E176: 43.73246753 | F176: 18.67337662 | G176: 8.707792208 | H176: 8.514285714 | I176: 7.74025974
B177: 2017-08-23 | C177: 4 | D177: 640 | E177: 43.82922078 | F177: 15.09350649 | G177: 8.611038961 | H177: 8.320779221 | I177: 7.643506494
B178: 2017-08-24 | C178: 5 | D178: 644 | E178: 42.57142857 | F178: 14.70649351 | G178: 8.127272727 | H178: 8.320779221 | I178: 7.15974026
B179: 2017-08-25 | C179: 6 | D179: 648 | E179: 41.02337662 | F179: 14.60974026 | G179: 6.966233766 | H179: 8.514285714 | I179: 5.998701299
B180: 2017-08-28 | C180: 2 | D180: 652 | E180: 39.66883117 | F180: 14.70649351 | G180: 8.320779221 | H180: 8.611038961 | I180: 7.256493506
B181: 2017-08-29 | C181: 3 | D181: 656 | E181: 38.79805195 | F181: 14.31948052 | G181: 8.224025974 | H181: 8.224025974 | I181: 7.256493506
B182: 2017-08-30 | C182: 4 | D182: 659 | E182: 38.60454545 | F182: 14.12597403 | G182: 8.320779221 | H182: 8.514285714 | I182: 6.772727273
B183: 2017-08-31 | C183: 5 | D183: 663 | E183: 38.21753247 | F183: 13.93246753 | G183: 8.320779221 | H183: 8.127272727 | I183: 7.353246753
B184: 2017-09-01 | C184: 6 | D184: 667 | E184: 38.21753247 | F184: 13.93246753 | G184: 8.320779221 | H184: 7.643506494 | I184: 7.353246753
B185: 2017-09-04 | C185: 2 | D185: 671 | E185: 38.02402597 | F185: 13.64220779 | G185: 8.320779221 | H185: 8.127272727 | I185: 7.353246753
B186: 2017-09-05 | C186: 3 | D186: 675 | E186: 36.95974026 | F186: 13.73896104 | G186: 8.320779221 | H186: 8.514285714 | I186: 6.772727273
B187: 2017-09-06 | C187: 4 | D187: 678 | E187: 38.21753247 | F187: 14.22272727 | G187: 9.288311688 | H187: 9.094805195 | I187: 7.353246753
B188: 2017-09-07 | C188: 5 | D188: 682 | E188: 38.31428571 | F188: 13.54545455 | G188: 9.481818182 | H188: 9.094805195 | I188: 7.546753247
B189: 2017-09-08 | C189: 6 | D189: 686 | E189: 38.7012987 | F189: 13.93246753 | G189: 10.06233766 | H189: 8.514285714 | I189: 7.546753247
B190: 2017-09-11 | C190: 2 | D190: 690 | E190: 38.7012987 | F190: 13.73896104 | G190: 9.288311688 | H190: 9.481818182 | I190: 7.353246753
B191: 2017-09-12 | C191: 3 | D191: 694 | E191: 38.99155844 | F191: 13.4487013 | G191: 9.288311688 | H191: 8.514285714 | I191: 7.256493506
B192: 2017-09-13 | C192: 4 | D192: 698 | E192: 39.28181818 | F192: 13.25519481 | G192: 9.578571429 | H192: 8.320779221 | I192: 7.45
B193: 2017-09-14 | C193: 5 | D193: 701 | E193: 39.95909091 | F193: 13.25519481 | G193: 9.772077922 | H193: 8.611038961 | I193: 7.74025974
B194: 2017-09-15 | C194: 6 | D194: 705 | E194: 39.95909091 | F194: 13.4487013 | G194: 9.481818182 | H194: 8.611038961 | I194: 7.353246753
B195: 2017-09-18 | C195: 2 | D195: 709 | E195: 39.37857143 | F195: 13.54545455 | G195: 9.094805195 | H195: 7.643506494 | I195: 7.353246753
B196: 2017-09-19 | C196: 3 | D196: 713 | E196: 38.79805195 | F196: 13.25519481 | G196: 10.25584416 | H196: 9.868831169 | I196: 8.320779221
B197: 2017-09-20 | C197: 4 | D197: 717 | E197: 39.08831169 | F197: 13.93246753 | G197: 10.73961039 | H197: 10.25584416 | I197: 8.901298701
B198: 2017-09-21 | C198: 5 | D198: 720 | E198: 39.66883117 | F198: 14.02922078 | G198: 11.12662338 | H198: 10.93311688 | I198: 9.191558442
B199: 2017-09-22 | C199: 6 | D199: 724 | E199: 39.95909091 | F199: 14.41623377 | G199: 10.83636364 | H199: 10.73961039 | I199: 9.191558442
B200: 2017-09-25 | C200: 2 | D200: 728 | E200: 40.73311688 | F200: 15.09350649 | G200: 11.41688312 | H200: 11.22337662 | I200: 9.578571429
B201: 2017-09-26 | C201: 3 | D201: 732 | E201: 41.70064935 | F201: 15.38376623 | G201: 11.70714286 | H201: 11.51363636 | I201: 9.675324675
B202: 2017-09-27 | C202: 4 | D202: 736 | E202: 43.05519481 | F202: 16.3512987 | G202: 12.19090909 | H202: 11.90064935 | I202: 10.25584416
B203: =IF(C202=6, B202+3, B202+1) -> 2017-09-28 | C203: =WEEKDAY(B203) -> 5 | D203: 739 | E203: 43.44220779 | F203: 16.64155844 | G203: 13.25519481 | H203: 11.32012987 | I203: 11.32012987
... 66 more rows

Sheet config
B2: TAB: CONFIGURATION FILE
B5: Test connection | C5: =_xll.AC.test.connection() -> host: CA2013466W3; user: Konstantin.Rybakov; key: null
B9: Key | C9: Description
B10: polylines | C10: Key for svg graph data
B11: xgrid | C11: Key for svg grid data
B12: height | C12: Key for svg maximum integer y-coordinate (minimum y-coordinate is zero)
B13: y | C13: Key for svg minimum integer coordinate
B15: Cell address | C15: Row count | D15: Col count | E15: Comment
B16: =addressFla(out!D9) -> 'out'!$D$9 | C16: =out!G5 -> 261 | D16: 1
B17: =addressFla(out!E9) -> 'out'!$E$9 | C17: =out!H6 -> 261 | D17: =out!G6 -> 5

Sheet guide
B2: Package: SVG Available functions:
